bitfinex/quotes_SOLUSD_20250414
["timestamp","ask_amount","ask_price","bid_price","bid_amount"]
[1744599814844,0.42648471,133.32,133.28,18.47485527]
[1744599815265,0.42648471,133.32,133.28,24.47695527]
[1744599816057,0.42648471,133.32,133.27,24.47745527]
[1744599817147,0.14216157,133.32,133.28,18.47485527]
[1744599817368,0.14216157,133.32,133.29,6.0019]
[1744599818553,0.28432314,133.33,133.29,24.47675527]
[1744599818751,0.28432314,133.33,133.3,18.47485527]
[1744599819159,0.28432314,133.33,133.29,24.47675527]
[1744599819558,0.28432314,133.33,133.29,6.0019]
[1744599820182,18.79181043,133.3,133.26,6.0662]
[1744599820465,0.28432314,133.32,133.28,18.47485527]
[1744599820689,0.14216157,133.32,133.3,18.47485527]
[1744599820869,18.64964886,133.33,133.3,18.47485527]
[1744599821170,18.79181043,133.34,133.31,18.47485527]
[1744599821473,0.42648471,133.34,133.29,18.47485527]
[1744599822870,0.42648471,133.32,133.27,33.13755527]
[1744599823047,0.42648471,133.32,133.27,24.47755527]
[1744599823249,0.28432314,133.32,133.29,18.47485527]
[1744599824061,0.28432314,133.32,133.28,18.47485527]
[1744599824273,0.28432314,133.32,133.27,24.47755527]
[1744599824867,0.28432314,133.32,133.28,18.47485527]
[1744599825574,0.28432314,133.32,133.28,24.47715527]
[1744599825774,0.28432314,133.32,133.28,18.47485527]
[1744599826375,0.14216157,133.31,133.26,0.063]
[1744599826678,0.14216157,133.31,133.26,18.53785527]
[1744599826879,0.14216157,133.31,133.27,18.47485527]
[1744599827565,0.14216157,133.31,133.27,24.47755527]
[1744599828663,18.79181043,133.31,133.27,18.47485527]
[1744599828862,0.14216157,133.3,133.26,0.063]
[1744599829280,0.14216157,133.3,133.26,6.0662]
[1744599829682,0.14216157,133.3,133.26,24.54105527]
[1744599831683,25.07763357,133.3,133.26,0.063]
[1744599831869,0.14216157,133.27,133.26,0.063]
[1744599834886,0.14216157,133.3,133.26,18.53785527]
[1744599835070,18.64964886,133.31,133.27,18.47485527]
[1744599835889,0.28432314,133.3,133.27,6.0027]
[1744599836281,0.42648471,133.3,133.26,6.0662]
[1744599836787,0.42648471,133.3,133.26,24.54105527]
[1744599836985,18.47485527,133.32,133.26,24.54105527]
[1744599836986,0.14216157,133.32,133.27,18.47485527]
[1744599837193,0.28432314,133.32,133.28,18.47485527]
[1744599837376,0.42648471,133.32,133.28,18.47485527]
[1744599837698,0.42648471,133.32,133.26,21.0744]
[1744599837699,18.64964886,133.31,133.27,18.47485527]
[1744599837985,18.64964886,133.31,133.27,24.47735527]
[1744599838690,0.14216157,133.31,133.27,24.47735527]
[1744599839394,6.128,133.37,133.3,18.47485527]
[1744599839691,18.64964886,133.36,133.32,18.47485527]
[1744599839863,18.64964886,133.36,133.32,24.47495527]
[1744599840278,0.14216157,133.37,133.33,18.47485527]
[1744599840789,0.42648471,133.37,133.33,18.47485527]
[1744599840986,0.14216157,133.37,133.33,18.47485527]
[1744599841160,0.14216157,133.37,133.34,5.9997]
[1744599841475,0.42648471,133.37,133.34,5.9997]
[1744599841674,0.28432314,133.37,133.34,5.9997]
[1744599841984,0.28432314,133.37,133.33,24.47475527]
[1744599842191,0.28432314,133.35,133.3,101.07485527]
[1744599842587,0.28432314,133.35,133.31,18.47485527]
[1744599843491,0.28432314,133.35,133.3,107.07625527]
[1744599843791,18.61701684,133.34,133.28,18.47485527]
[1744599843966,37.2666657,133.34,133.28,24.47715527]
[1744599846096,43.2665657,133.34,133.28,24.47715527]
[1744599846477,0.14216157,133.31,133.26,18.53785527]
[1744599847492,0.14216157,133.31,133.26,24.54095527]
[1744599849889,0.14216157,133.32,133.28,18.47485527]
[1744599850095,0.42648471,133.32,133.28,18.47485527]
[1744599851805,0.42648471,133.32,133.29,18.47485527]
[1744599852096,0.42648471,133.32,133.28,6.0021]
[1744599852097,0.42648471,133.32,133.28,24.47695527]
[1744599852300,19.07613357,133.36,133.29,18.47485527]
[1744599852481,0.14216157,133.33,133.29,18.47485527]
[1744599852886,0.14216157,133.33,133.28,24.47695527]
[1744599853197,0.28432314,133.3,133.26,107.14095527]
[1744599853387,0.28432314,133.3,133.26,24.54095527]
[1744599853584,0.14216157,133.3,133.26,24.54095527]
[1744599853788,0.28432314,133.3,133.26,24.54095527]
[1744599853983,0.28432314,133.3,133.26,6.0661]
[1744599854190,0.14216157,133.28,133.26,0.063]
[1744599854876,63.40882727,133.27,133.26,0.063]
[1744599855081,45.07613357,133.27,133.26,0.063]
[1744599855404,19.07613357,133.27,133.26,0.063]
[1744599856108,18.933972,133.27,133.26,0.063]
[1744599857106,37.2666657,133.33,133.26,18.53785527]
[1744599857402,0.14216157,133.32,133.27,18.47485527]
[1744599857604,18.933972,133.29,133.26,0.063]
[1744599857902,0.14216157,133.28,133.26,0.063]
[1744599858103,43.41162727,133.27,133.26,0.063]
[1744599858271,49.99028884,133.27,133.26,0.063]
[1744599860301,56.01671829,133.27,133.26,0.063]
[1744599860799,45.07613357,133.25,133.24,0.0001]
[1744599860995,0.28432314,133.23,133.22,0.063]
[1744599861198,37.55098884,133.23,133.22,0.063]
[1744599862904,43.55558884,133.23,133.22,0.063]
[1744599864004,25.08073357,133.23,133.22,0.063]
[1744599864303,43.55558884,133.23,133.22,0.063]
[1744599869104,44.79181043,133.13,133.12,0.063]
[1744599869410,0.14216157,133.15,133.12,0.063]
[1744599869913,18.61701684,133.15,133.12,0.063]
[1744599870406,0.14216157,133.14,133.12,0.063]
[1744599870718,18.933972,133.13,133.12,0.063]
[1744599872724,24.943072,133.13,133.12,0.063]
[1744599874226,43.56008884,133.13,133.12,0.063]
[1744599874408,43.56008884,133.13,133.06,0.063]
[1744599874409,0.28432314,133.12,133.06,0.063]
[1744599874612,18.47485527,133.09,133.06,0.063]
[1744599874919,0.28432314,133.12,133.07,18.47485527]
[1744599875121,0.14216157,133.14,133.09,18.47485527]
[1744599875328,37.2666657,133.13,133.07,18.47485527]
[1744599875526,18.64964886,133.11,133.06,18.53785527]
[1744599875734,37.12450413,133.11,133.06,18.53785527]
[1744599876125,18.61701684,133.12,133.06,18.53785527]
[1744599876429,37.12450413,133.13,133.07,18.47485527]
[1744599876626,37.12450413,133.13,133.08,18.47485527]
[1744599876805,18.75917841,133.14,133.08,18.47485527]
[1744599877131,18.79181043,133.14,133.09,18.47485527]
[1744599877321,18.61701684,133.16,133.11,24.48485527]
[1744599877519,0.28432314,133.16,133.12,18.47485527]
[1744599877703,33.29734886,133.17,133.12,18.47485527]
[1744599878024,18.64964886,133.17,133.12,18.47485527]
[1744599878226,8.66,133.21,133.15,18.47485527]
[1744599878400,27.13485527,133.21,133.16,18.47485527]
[1744599878597,16.6327,133.23,133.17,18.47485527]
[1744599878598,18.47485527,133.23,133.17,18.47485527]
[1744599878825,18.933972,133.22,133.17,18.47485527]
[1744599879226,30.22028815,133.22,133.17,11.57063929]
[1744599879415,30.22028815,133.22,133.17,6.0071]
[1744599879923,36.22548815,133.22,133.16,17.57823929]
[1744599881130,43.17012185,133.22,133.16,24.52287299]
[1744599881332,43.17012185,133.22,133.17,24.52227299]
[1744599881517,43.17012185,133.22,133.16,24.52287299]
[1744599882828,0.14216157,133.24,133.18,18.51527299]
[1744599883025,6.0033,133.26,133.21,18.51527299]
[1744599883323,6.1963,133.29,133.22,18.51527299]
[1744599883524,6.1963,133.29,133.24,18.51527299]
[1744599883832,0.03,133.28,133.25,18.51527299]
[1744599884034,0.03,133.28,133.27,18.51527299]
[1744599884825,0.03,133.28,133.27,24.51807299]
[1744599885130,0.03,133.28,133.27,18.51527299]
[1744599885514,0.03,133.28,133.26,6.0031]
[1744599885714,0.03,133.28,133.26,24.51837299]
[1744599886435,0.03,133.28,133.23,14.0668]
[1744599886734,0.03,133.28,133.25,18.51527299]
[1744599886921,0.03,133.28,133.26,6.0033]
[1744599887321,0.03,133.28,133.26,24.51857299]
[1744599887726,0.03,133.28,133.26,18.51527299]
[1744599887936,0.03,133.28,133.25,18.51527299]
[1744599888114,0.03,133.28,133.24,18.51527299]
[1744599888428,0.03,133.28,133.25,18.51527299]
[1744599888744,0.03,133.28,133.23,8.0623]
[1744599888928,6.0324,133.28,133.24,18.51527299]
[1744599889319,0.03,133.28,133.24,18.51527299]
[1744599889525,0.03,133.28,133.25,18.51527299]
[1744599889834,0.03,133.28,133.24,18.51527299]
[1744599890344,18.963972,133.28,133.23,18.51527299]
[1744599890645,37.47924499,133.28,133.22,18.51527299]
[1744599890943,6.0028,133.27,133.22,18.51527299]
[1744599891745,6.0028,133.27,133.23,18.51527299]
[1744599892743,24.966372,133.28,133.23,18.51527299]
[1744599893041,0.03,133.28,133.25,18.51527299]
[1744599893519,0.03,133.28,133.26,18.51527299]
[1744599894645,0.03,133.28,133.26,24.51847299]
[1744599894823,0.03,133.28,133.26,18.51527299]
[1744599895640,0.03,133.28,133.27,18.51527299]
[1744599896419,0.03,133.28,133.27,24.51807299]
[1744599897036,0.03,133.28,133.27,32.56047299]
[1744599897842,0.03,133.28,133.27,44.51527299]
[1744599898426,0.03,133.28,133.27,50.51807299]
[1744599898649,0.03,133.28,133.27,24.51807299]
[1744599901643,0.03,133.28,133.27,18.51527299]
[1744599901817,0.03,133.28,133.26,24.51837299]
[1744599902263,0.03,133.28,133.27,18.51527299]
[1744599903253,0.03,133.28,133.27,11.55389652]
[1744599903436,0.03,133.28,133.26,17.55699652]
[1744599904850,0.03,133.28,133.27,11.55389652]
[1744599905148,0.03,133.28,133.27,94.15389652]
[1744599906047,0.03,133.34,133.27,94.15389652]
[1744599906239,0.03,133.34,133.33,11.55389652]
[1744599906949,0.03,133.34,133.33,17.55399652]
[1744599908651,0.03,133.34,133.33,6.0001]
[1744599908855,0.03,133.34,133.33,17.55399652]
[1744599909851,0.03,133.34,133.32,6.0005]
[1744599910055,0.03,133.34,133.31,6.0008]
[1744599912250,0.03,133.34,133.31,17.55469652]
[1744599912460,0.03,133.34,133.32,11.55389652]
[1744599913058,0.03,133.34,133.31,100.15469652]
[1744599914857,0.03,133.34,133.31,88.6008]
[1744599915059,0.03,133.34,133.31,82.6]
[1744599915356,0.03,133.34,133.31,94.15389652]
[1744599916557,0.03,133.34,133.31,100.15479652]
[1744599917567,0.03,133.34,133.31,82.6]
[1744599917730,11.83821966,133.33,133.28,17.55609652]
[1744599917936,11.83821966,133.33,133.28,100.15609652]
[1744599919054,0.28432314,133.33,133.28,100.15609652]
[1744599919959,0.03,133.34,133.32,11.55389652]
[1744599920263,0.03,133.34,133.33,11.55389652]
[1744599920854,0.03,133.34,133.33,17.55399652]
[1744599928461,0.03,133.34,133.33,19.42804328]
[1744599929264,0.03,133.36,133.35,26.0]
[1744599929440,0.03,133.39,133.36,18.79181043]
[1744599929788,0.03,133.46,133.41,26.0]
[1744599929986,0.03,133.46,133.41,37.55389652]
[1744599930737,0.0001,133.42,133.41,37.55389652]
[1744599931162,0.0001,133.42,133.41,50.42937063]
[1744599934747,0.0001,133.42,133.41,69.22118106]
[1744599935042,0.03,133.46,133.41,166.81248106]
[1744599935268,0.03,133.46,133.45,18.43287063]
[1744599935465,0.03,133.46,133.45,24.42757063]
[1744599936972,0.03,133.46,133.42,5.9961]
[1744599937361,0.03,133.46,133.42,24.42897063]
[1744599937747,0.31432314,133.46,133.41,101.03287063]
[1744599937951,0.03,133.46,133.41,107.02927063]
[1744599938152,0.03,133.46,133.42,18.43287063]
[1744599939369,0.03,133.46,133.42,5.996]
[1744599940975,0.03,133.46,133.43,18.43287063]
[1744599941473,0.03,133.46,133.44,18.43287063]
[1744599941656,0.03,133.46,133.45,18.43287063]
[1744599943061,0.0001,133.46,133.45,132.45008106]
[1744599943259,0.0001,133.46,133.45,113.65827063]
[1744599943455,0.0001,133.46,133.45,107.02757063]
[1744599944585,0.0001,133.46,133.45,24.42757063]
[1744599944752,0.0001,133.46,133.45,5.9947]
[1744599944960,18.43297063,133.46,133.39,14.9928]
[1744599945263,18.43287063,133.44,133.39,5.9974]
[1744599945581,24.48127063,133.43,133.38,5.9977]
[1744599945758,37.36684263,133.42,133.37,5.9982]
[1744599946276,18.43287063,133.41,133.37,5.9982]
[1744599946488,18.43287063,133.38,133.35,0.063]
[1744599947166,18.43287063,133.39,133.35,0.063]
[1744599947357,18.71719377,133.38,133.35,0.063]
[1744599947779,37.36684263,133.36,133.35,0.063]
[1744599948084,45.0858042,133.36,133.35,0.063]
[1744599948982,18.933972,133.34,133.27,0.063]
[1744599949278,18.43287063,133.33,133.27,18.49587063]
[1744599949472,18.43287063,133.33,133.28,18.43287063]
[1744599949865,18.43287063,133.33,133.27,18.49587063]
[1744599950062,18.71719377,133.32,133.27,0.063]
[1744599950674,37.36684263,133.28,133.27,0.063]
[1744599950881,18.71719377,133.28,133.27,0.063]
[1744599951257,37.36684263,133.28,133.27,0.063]
[1744599952180,18.933972,133.29,133.27,0.063]
[1744599952574,72.00147063,133.36,133.27,0.063]
[1744599952575,0.14216157,133.35,133.27,0.063]
[1744599952754,18.79181043,133.35,133.3,18.43287063]
[1744599953078,16.1368,133.36,133.31,24.43387063]
[1744599953259,8.56,133.36,133.33,18.43287063]
[1744599953457,18.43287063,133.38,133.33,18.43287063]
[1744599953683,18.5750322,133.39,133.34,18.43287063]
[1744599953860,18.64964886,133.38,133.34,18.43287063]
[1744599954180,6.3217,133.4,133.36,18.43287063]
[1744599954383,6.3217,133.4,133.35,18.43287063]
[1744599954558,18.43287063,133.39,133.34,18.43287063]
[1744599954758,37.08251949,133.39,133.34,18.43287063]
[1744599955071,37.08251949,133.39,133.35,5.9992]
[1744599955271,6.3217,133.4,133.35,5.9992]
[1744599955580,6.3217,133.4,133.35,24.43207063]
[1744599956186,37.08251949,133.39,133.34,24.43247063]
[1744599956390,37.08251949,133.39,133.3,15.003]
[1744599956391,0.28432314,133.38,133.33,24.43297063]
[1744599956964,37.08251949,133.39,133.35,5.9992]
[1744599957267,18.933972,133.39,133.35,5.9992]
[1744599957581,18.43287063,133.38,133.33,24.43297063]
[1744599958381,6.3217,133.4,133.34,18.43287063]
[1744599958685,37.08251949,133.39,133.34,18.43287063]
[1744599959070,37.08251949,133.39,133.33,18.43287063]
[1744599959492,37.08251949,133.39,133.34,18.43287063]
[1744599959673,18.64964886,133.39,133.34,18.43287063]
[1744599960078,37.08251949,133.39,133.34,18.43287063]
[1744599960373,0.28432314,133.38,133.33,18.43287063]
[1744599961488,0.28432314,133.38,133.33,24.43267063]
[1744599962073,0.28432314,133.36,133.31,101.03287063]
[1744599962376,37.36684263,133.33,133.27,101.09587063]
[1744599962575,37.36684263,133.35,133.29,18.43287063]
[1744599962786,18.43287063,133.38,133.32,18.43287063]
[1744599962985,18.43287063,133.38,133.33,18.43287063]
[1744599963570,37.22468106,133.39,133.33,24.43257063]
[1744599963781,0.14216157,133.38,133.33,24.43257063]
[1744599963989,18.5750322,133.38,133.33,5.9997]
[1744599966099,18.5750322,133.36,133.31,24.43347063]
[1744599966275,37.22468106,133.37,133.31,24.43347063]
[1744599966589,0.14216157,133.38,133.33,18.43287063]
[1744599966780,18.5750322,133.38,133.33,18.43287063]
[1744599966983,18.43287063,133.34,133.27,0.063]
[1744599967291,18.43287063,133.33,133.27,18.49587063]
[1744599967870,18.43287063,133.33,133.28,6.0024]
[1744599968471,18.43287063,133.33,133.28,24.43527063]
[1744599970395,18.43287063,133.31,133.28,82.6]
[1744599970699,18.43287063,133.31,133.27,6.0658]
[1744599971392,18.43287063,133.35,133.29,18.43287063]
[1744599971590,37.08251949,133.36,133.31,24.43387063]
[1744599971894,18.43287063,133.35,133.31,6.001]
[1744599972094,18.43287063,133.34,133.29,88.6018]
[1744599972395,18.43287063,133.33,133.29,88.6018]
[1744599972779,18.43287063,133.34,133.29,88.6018]
[1744599972984,24.75457063,133.37,133.31,18.43287063]
[1744599973178,37.22468106,133.4,133.34,18.43287063]
[1744599973384,0.28432314,133.39,133.34,18.43287063]
[1744599973590,18.5750322,133.4,133.35,5.9992]
[1744599973787,33.29457063,133.41,133.35,24.43207063]
[1744599973991,24.75457063,133.41,133.36,18.43287063]
[1744599974688,24.75457063,133.41,133.35,24.43207063]
[1744599975197,37.36684263,133.4,133.35,5.9992]
[1744599975401,18.43287063,133.39,133.35,5.9992]
[1744599976200,18.933972,133.4,133.35,5.9992]
[1744599976602,18.43287063,133.4,133.35,24.43207063]
[1744599976789,24.75457063,133.41,133.35,24.43207063]
[1744599977178,18.43287063,133.4,133.35,24.43207063]
[1744599977387,6.3217,133.41,133.35,24.43207063]
[1744599977591,24.75457063,133.41,133.35,24.43207063]
[1744599978001,37.36684263,133.4,133.35,5.9992]
[1744599978186,18.43287063,133.37,133.33,6.0001]
[1744599978394,37.08251949,133.38,133.33,6.0001]
[1744599978690,18.43287063,133.35,133.3,24.43437063]
[1744599979094,18.43287063,133.36,133.31,18.43287063]
[1744599979791,18.43287063,133.38,133.32,24.43347063]
[1744599980102,18.43287063,133.38,133.33,18.43287063]
[1744599981213,24.5725322,133.39,133.33,18.43287063]
[1744599981510,18.43287063,133.38,133.33,18.43287063]
[1744599981885,18.71719377,133.39,133.34,5.9997]
[1744599983421,18.71719377,133.39,133.34,88.5997]
[1744599983791,26.97287063,133.41,133.35,18.43287063]
[1744599984003,18.64964886,133.42,133.36,18.43287063]
[1744599984206,18.43287063,133.42,133.36,18.43287063]
[1744599984889,24.42897063,133.42,133.37,5.9983]
[1744599985203,24.42867063,133.43,133.37,24.43117063]
[1744599985403,18.43287063,133.41,133.36,24.43147063]
[1744599985609,18.43287063,133.39,133.34,18.43287063]
[1744599985791,18.43287063,133.39,133.33,18.43287063]
[1744599986413,18.43287063,133.39,133.33,24.43297063]
[1744599987089,24.43037063,133.39,133.33,24.43297063]
[1744599987592,0.14216157,133.41,133.35,18.43287063]
[1744599987817,18.43287063,133.43,133.37,18.43287063]
[1744599988816,0.03,133.44,133.39,18.43287063]
[1744599989121,0.03,133.44,133.43,18.43287063]
[1744599991196,0.03,133.44,133.43,24.42847063]
[1744599992089,0.03,133.44,133.42,5.9959]
[1744599993193,0.03,133.44,133.42,24.42877063]
[1744599994915,0.03,133.44,133.43,18.43287063]
[1744599995114,0.03,133.44,133.43,101.03287063]
[1744599996918,0.03,133.44,133.43,107.02847063]
[1744599997496,0.03,133.44,133.43,88.5956]
[1744599997712,0.03,133.44,133.43,107.02847063]
[1744600000396,0.03,133.44,133.43,88.5956]
[1744600000602,0.03,133.44,133.43,107.02847063]
[1744600001011,0.0001,133.46,133.45,44.79181043]
[1744600001216,0.0001,133.46,133.45,70.84318106]
[1744600001813,0.0001,133.47,133.45,153.41318106]
[1744600002316,0.0001,133.47,133.46,18.43287063]
[1744600003208,0.0001,133.47,133.46,24.42717063]
[1744600003412,0.0001,133.47,133.46,5.9943]
[1744600003610,0.0001,133.47,133.46,24.42717063]
[1744600006838,0.0001,133.47,133.46,106.99717063]
[1744600008643,0.0001,133.47,133.46,82.57]
[1744600010128,18.43297063,133.47,133.43,88.5653]
[1744600010425,18.43287063,133.46,133.43,82.57]
[1744600010811,18.43297063,133.47,133.43,88.5656]
[1744600012733,0.0001,133.47,133.43,88.5656]
[1744600012927,18.43297063,133.47,133.43,88.5656]
[1744600013807,0.0001,133.47,133.43,88.5656]
[1744600014212,0.0001,133.47,133.43,106.99847063]
[1744600014425,0.0001,133.47,133.45,18.43287063]
[1744600014631,0.0001,133.47,133.46,18.43287063]
[1744600015518,0.0001,133.47,133.46,101.00287063]
[1744600016340,0.0001,133.47,133.46,135.87808106]
[1744600016930,0.0001,133.47,133.46,106.99717063]
[1744600017244,0.0001,133.47,133.46,88.5643]
[1744600017620,0.0001,133.47,133.42,14.5159]
[1744600017821,18.43287063,133.45,133.4,18.43287063]
[1744600018347,18.43287063,133.45,133.4,24.42987063]
[1744600018548,18.43287063,133.45,133.4,5.997]
[1744600018748,18.43287063,133.45,133.4,24.42987063]
[1744600019045,0.0001,133.47,133.42,18.43287063]
[1744600019244,18.43297063,133.47,133.42,18.43287063]
[1744600019443,18.43287063,133.45,133.4,20.9895]
[1744600019741,18.43287063,133.45,133.4,39.42237063]
[1744600020240,18.43297063,133.47,133.41,18.43287063]
[1744600020645,18.43297063,133.47,133.42,5.9961]
[1744600021944,18.43297063,133.47,133.42,24.42897063]
[1744600022542,18.43297063,133.47,133.41,18.43287063]
[1744600022839,18.43297063,133.47,133.42,18.43287063]
[1744600023031,0.0001,133.47,133.42,18.43287063]
[1744600023546,0.0001,133.47,133.43,18.43287063]
[1744600023748,0.0001,133.47,133.42,18.43287063]
[1744600023949,0.0001,133.47,133.4,20.9895]
[1744600023950,18.43297063,133.47,133.4,20.9895]
[1744600024242,18.43297063,133.47,133.42,18.43287063]
[1744600024450,0.0001,133.47,133.42,101.00287063]
[1744600024630,0.0001,133.47,133.43,5.9956]
[1744600024821,18.43297063,133.47,133.43,5.9956]
[1744600025228,18.43297063,133.47,133.42,88.5659]
[1744600026344,18.43297063,133.47,133.42,106.99877063]
[1744600026653,24.42697063,133.47,133.42,82.57]
[1744600026848,18.43287063,133.46,133.42,88.566]
[1744600027642,18.43287063,133.46,133.42,82.57]
[1744600027844,18.43287063,133.43,133.42,82.57]
[1744600028143,18.43287063,133.43,133.38,91.09]
[1744600028350,18.43287063,133.42,133.38,82.57]
[1744600028530,18.43287063,133.43,133.38,88.5677]
[1744600028730,18.43287063,133.45,133.4,18.43287063]
[1744600028959,18.43297063,133.47,133.42,18.43287063]
[1744600029145,18.43297063,133.47,133.42,101.00287063]
[1744600029728,0.0001,133.47,133.42,101.00287063]
[1744600029930,0.0001,133.47,133.44,18.43287063]
[1744600030450,0.0001,133.47,133.43,18.43287063]
[1744600030747,0.0001,133.47,133.44,5.9952]
[1744600031632,0.0001,133.47,133.44,17.51827128]
[1744600031833,0.0001,133.47,133.43,17.51867128]
[1744600032330,0.0001,133.47,133.44,1.87260353]
[1744600033069,30.59920485,133.45,133.44,1.87260353]
[1744600033273,38.18400485,133.45,133.44,1.87260353]
[1744600033553,18.933972,133.44,133.38,17.52057128]
[1744600033859,30.45704328,133.44,133.39,8.69804467]
[1744600034246,11.80739442,133.44,133.39,8.69804467]
[1744600034664,11.80739442,133.44,133.39,5.997]
[1744600035131,18.73587813,133.44,133.39,5.997]
[1744600037160,0.0001,133.47,133.39,103.5606]
[1744600037367,0.0001,133.47,133.42,18.45155499]
[1744600037534,0.0001,133.47,133.42,101.02155499]
[1744600037734,18.45155499,133.47,133.42,101.02155499]
[1744600037934,18.45155499,133.45,133.42,82.57]
[1744600038144,18.45155499,133.44,133.42,82.57]
[1744600038560,5.9944,133.46,133.42,82.57]
[1744600038758,18.45155499,133.44,133.42,88.566]
[1744600038931,18.45155499,133.45,133.42,82.57]
[1744600039737,18.45155499,133.45,133.42,88.566]
[1744600040876,0.28432314,133.47,133.42,88.566]
[1744600041070,18.45155499,133.47,133.42,88.566]
[1744600041874,7.6148,133.49,133.42,107.01755499]
[1744600042039,18.45155499,133.48,133.43,18.45155499]
[1744600042240,18.45155499,133.48,133.44,5.9952]
[1744600042552,0.03,133.49,133.46,18.45155499]
[1744600043042,0.03,133.49,133.47,18.45155499]
[1744600044246,0.03,133.49,133.48,5.9934]
[1744600044442,0.03,133.5,133.48,24.44495499]
[1744600044641,0.03,133.5,133.49,18.45155499]
[1744600044838,0.03,133.51,133.49,18.45155499]
[1744600044839,0.03,133.51,133.5,8.1114]
[1744600045037,0.03,133.51,133.49,82.57]
[1744600045254,0.03,133.51,133.5,18.45155499]
[1744600045449,0.03,133.51,133.49,82.57]
[1744600046036,18.48155499,133.51,133.46,5.9943]
[1744600046261,18.48155499,133.51,133.43,5.9956]
[1744600046262,18.45155499,133.47,133.43,5.9956]
[1744600046440,18.45155499,133.46,133.43,5.9956]
[1744600046638,18.73587813,133.46,133.42,5.9959]
[1744600046948,18.45155499,133.45,133.42,5.9959]
[1744600047450,18.45155499,133.45,133.41,5.9963]
[1744600048368,18.45155499,133.46,133.41,24.44785499]
[1744600048751,0.28432314,133.47,133.41,24.44785499]
[1744600048953,18.73587813,133.47,133.41,24.44785499]
[1744600049151,18.45155499,133.46,133.41,24.44785499]
[1744600049352,18.45155499,133.46,133.41,20.9876]
[1744600049553,18.45155499,133.47,133.42,18.45155499]
[1744600050159,18.45155499,133.47,133.41,39.43915499]
[1744600050362,18.73587813,133.46,133.41,5.9963]
[1744600050548,18.73587813,133.44,133.4,14.4768]
[1744600050754,18.45155499,133.43,133.4,5.9968]
[1744600051156,18.45155499,133.42,133.38,5.9979]
[1744600051745,18.45155499,133.41,133.37,6.0612]
[1744600052067,20.594872,133.45,133.37,6.0612]
[1744600052068,18.45155499,133.42,133.37,24.51275499]
[1744600052262,18.45155499,133.42,133.37,6.0612]
[1744600052658,0.28432314,133.43,133.37,24.51275499]
[1744600052852,18.45155499,133.43,133.38,18.45155499]
[1744600053166,0.28432314,133.44,133.39,18.45155499]
[1744600053356,18.73587813,133.44,133.39,18.45155499]
[1744600053757,0.03,133.51,133.46,26.0]
[1744600053950,0.03,133.51,133.49,18.45155499]
[1744600054148,0.03,133.51,133.47,26.0]
[1744600054366,0.03,133.51,133.48,26.0]
[1744600054560,18.48155499,133.51,133.45,5.9947]
[1744600054867,18.45155499,133.48,133.45,5.9947]
[1744600055073,18.45155499,133.46,133.42,5.9961]
[1744600055257,18.45155499,133.44,133.42,5.9961]
[1744600055449,18.45155499,133.44,133.39,5.9974]
[1744600055655,18.45155499,133.46,133.4,18.45155499]
[1744600055858,0.28432314,133.45,133.39,39.44255499]
[1744600056161,18.73587813,133.45,133.39,39.44255499]
[1744600057053,18.45155499,133.46,133.4,18.45155499]
[1744600057664,0.28432314,133.47,133.42,44.45155499]
[1744600057955,18.45155499,133.48,133.42,44.45155499]
[1744600058166,29.036272,133.49,133.42,44.45155499]
[1744600058361,18.59371656,133.48,133.42,44.45155499]
[1744600058675,18.59371656,133.48,133.43,5.9956]
[1744600059175,8.62216157,133.49,133.43,24.44715499]
[1744600059475,18.45155499,133.47,133.43,5.9956]
[1744600059675,18.45155499,133.44,133.38,14.9939]
[1744600059857,18.45155499,133.44,133.41,26.0]
[1744600060057,18.45155499,133.44,133.41,108.57]
[1744600060281,18.45155499,133.45,133.41,108.57]
[1744600060783,0.28432314,133.46,133.41,114.5661]
[1744600061082,18.45155499,133.45,133.41,114.5661]
[1744600061478,0.28432314,133.44,133.41,82.57]
[1744600061788,0.28432314,133.44,133.41,88.5664]
[1744600062485,18.45155499,133.45,133.41,88.5664]
[1744600062861,18.73587813,133.46,133.41,88.5664]
[1744600063069,18.45155499,133.48,133.42,18.45155499]
[1744600063406,26.91155499,133.49,133.43,18.45155499]
[1744600064469,18.45155499,133.48,133.42,18.45155499]
[1744600064881,18.73587813,133.47,133.42,5.9959]
[1744600065081,18.73587813,133.43,133.37,24.92575499]